[Event "Titled Tuesday Blitz July 27 2021"]
[White "Rangel, Daniel"]
[Black "Willow, Jonah B"]
[WhiteFideId "2124475"]
[BlackFideId "438804"]
[WhiteElo "2187"]
[BlackElo "2261"]
[Result "0-1"]
[Round "06"]
[TimeControl "180+1"]
[Date "2021.07.27"]
[WhiteClock "0:00:12"]
[BlackClock "0:00:14"]

1. c4 {[%clk 0:03:00]}  c5 {[%clk 0:03:00]} 2. g3 {[%clk 0:03:00]}  g6 {[%clk 0:03:00]} 3. Bg2 {[%clk 0:03:01]}  Bg7 {[%clk 0:03:01]} 4. Nc3 {[%clk 0:03:01]}  Nc6 {[%clk 0:03:02]} 5. e4 {[%clk 0:02:59]}  e6 {[%clk 0:03:03]} 6. Nge2 {[%clk 0:02:58]}  Nge7 {[%clk 0:03:04]} 7. O-O {[%clk 0:02:58]}  O-O {[%clk 0:03:05]} 8. d3 {[%clk 0:02:56]}  d6 {[%clk 0:03:05]} 9. Be3 {[%clk 0:02:55]}  Nd4 {[%clk 0:03:04]} 10. a3 {[%clk 0:02:50]}  Nec6 {[%clk 0:03:04]} 11. Rb1 {[%clk 0:02:49]}  Qa5 {[%clk 0:03:01]} 12. Bd2 {[%clk 0:02:32]}  a6 {[%clk 0:02:54]} 13. Nxd4 {[%clk 0:02:22]}  cxd4 {[%clk 0:02:51]} 14. Ne2 {[%clk 0:02:14]}  Qd8 {[%clk 0:02:51]} 15. b4 {[%clk 0:02:12]}  b5 {[%clk 0:02:51]} 16. e5 {[%clk 0:01:40]}  Bb7 {[%clk 0:01:55]} 17. Nxd4 {[%clk 0:01:34]}  d5 {[%clk 0:01:34]} 18. Nxc6 {[%clk 0:01:30]}  Bxc6 {[%clk 0:01:34]} 19. Bf4 {[%clk 0:01:07]}  g5 {[%clk 0:01:24]} 20. Be3 {[%clk 0:00:59]}  Bxe5 {[%clk 0:01:23]} 21. Bc5 {[%clk 0:00:53]}  Re8 {[%clk 0:01:21]} 22. Re1 {[%clk 0:00:45]}  Bf6 {[%clk 0:01:14]} 23. Qh5 {[%clk 0:00:36]}  Qd7 {[%clk 0:01:11]} 24. cxd5 {[%clk 0:00:33]}  Bxd5 {[%clk 0:01:11]} 25. Bxd5 {[%clk 0:00:31]}  Qxd5 {[%clk 0:01:12]} 26. d4 {[%clk 0:00:30]}  Qf5 {[%clk 0:01:05]} 27. Rbd1 {[%clk 0:00:27]}  Red8 {[%clk 0:01:05]} 28. Kg2 {[%clk 0:00:15]}  Rd5 {[%clk 0:01:04]} 29. Qf3 {[%clk 0:00:13]}  Qg6 {[%clk 0:00:58]} 30. Qe4 {[%clk 0:00:10]}  Rad8 {[%clk 0:00:48]} 31. Qxg6+ {[%clk 0:00:06]}  hxg6 {[%clk 0:00:49]} 32. Re2 {[%clk 0:00:03]}  e5 {[%clk 0:00:47]} 33. Rc2 {[%clk 0:00:01]}  exd4 {[%clk 0:00:47]} 34. Rcd2 {[%clk 0:00:01]}  d3 {[%clk 0:00:47]} 35. Be3 {[%clk 0:00:01]}  Bc3 {[%clk 0:00:47]} 36. Ra2 {[%clk 0:00:02]}  d2 {[%clk 0:00:42]} 37. Kf3 {[%clk 0:00:03]}  Kh7 {[%clk 0:00:27]} 38. Ke2 {[%clk 0:00:04]}  Re8 {[%clk 0:00:27]} 39. Rc2 {[%clk 0:00:04]}  Rc8 {[%clk 0:00:17]} 40. Bxd2 {[%clk 0:00:04]}  Re8+ {[%clk 0:00:16]} 41. Be3 {[%clk 0:00:04]}  Rxd1 {[%clk 0:00:09]} 42. Kxd1 {[%clk 0:00:05]}  Rd8+ {[%clk 0:00:06]} 43. Ke2 {[%clk 0:00:04]}  Bf6 {[%clk 0:00:05]} 44. Rc6 {[%clk 0:00:04]}  Bb2 {[%clk 0:00:04]} 45. Rxa6 {[%clk 0:00:04]}  Rc8 {[%clk 0:00:05]} 46. Bxg5 {[%clk 0:00:04]}  Rc2+ {[%clk 0:00:05]} 47. Kf3 {[%clk 0:00:05]}  Rc3+ {[%clk 0:00:04]} 48. Be3 {[%clk 0:00:05]}  Bxa3 {[%clk 0:00:04]} 49. Ra5 {[%clk 0:00:06]}  Bxb4 {[%clk 0:00:04]} 50. Rxb5 {[%clk 0:00:06]}  Be7 {[%clk 0:00:04]} 51. Rd5 {[%clk 0:00:07]}  Bf6 {[%clk 0:00:03]} 52. h4 {[%clk 0:00:07]}  Kg7 {[%clk 0:00:04]} 53. h5 {[%clk 0:00:07]}  gxh5 {[%clk 0:00:04]} 54. Rxh5 {[%clk 0:00:07]}  Rb3 {[%clk 0:00:05]} 55. Rd5 {[%clk 0:00:07]}  Kg6 {[%clk 0:00:05]} 56. Kg2 {[%clk 0:00:06]}  Be7 {[%clk 0:00:04]} 57. Ra5 {[%clk 0:00:07]}  Rb2 {[%clk 0:00:04]} 58. Ra6+ {[%clk 0:00:08]}  f6 {[%clk 0:00:04]} 59. Rb6 {[%clk 0:00:08]}  Rc2 {[%clk 0:00:04]} 60. Rb7 {[%clk 0:00:08]}  Bd6 {[%clk 0:00:03]} 61. Rb6 {[%clk 0:00:09]}  Be5 {[%clk 0:00:04]} 62. Ra6 {[%clk 0:00:09]}  Re2 {[%clk 0:00:03]} 63. Rc6 {[%clk 0:00:09]}  Ra2 {[%clk 0:00:03]} 64. Rc5 {[%clk 0:00:10]}  Kf7 {[%clk 0:00:04]} 65. Rb5 {[%clk 0:00:10]}  Ke6 {[%clk 0:00:04]} 66. Rb6+ {[%clk 0:00:11]}  Kf7 {[%clk 0:00:05]} 67. Rb3 {[%clk 0:00:12]}  Ke7 {[%clk 0:00:05]} 68. Rd3 {[%clk 0:00:12]}  Ke6 {[%clk 0:00:06]} 69. Kf3 {[%clk 0:00:13]}  Kf7 {[%clk 0:00:06]} 70. Rb3 {[%clk 0:00:14]}  Ra4 {[%clk 0:00:07]} 71. Rb6 {[%clk 0:00:14]}  Kg6 {[%clk 0:00:07]} 72. Kg2 {[%clk 0:00:14]}  Ra2 {[%clk 0:00:07]} 73. g4 {[%clk 0:00:15]}  Kf7 {[%clk 0:00:08]} 74. Kf3 {[%clk 0:00:15]}  Ba1 {[%clk 0:00:07]} 75. Ke4 {[%clk 0:00:15]}  Ra4+ {[%clk 0:00:07]} 76. Kf5 {[%clk 0:00:15]}  Ra5+ {[%clk 0:00:07]} 77. Ke4 {[%clk 0:00:15]}  Re5+ {[%clk 0:00:08]} 78. Kf3 {[%clk 0:00:16]}  Ra5 {[%clk 0:00:09]} 79. Rb7+ {[%clk 0:00:16]}  Kg6 {[%clk 0:00:09]} 80. Rb1 {[%clk 0:00:16]}  Be5 {[%clk 0:00:08]} 81. Rg1 {[%clk 0:00:16]}  Ra4 {[%clk 0:00:09]} 82. g5 {[%clk 0:00:16]}  f5 {[%clk 0:00:10]} 83. Rh1 {[%clk 0:00:16]}  f4 {[%clk 0:00:10]} 84. Bd2 {[%clk 0:00:13]}  Kxg5 {[%clk 0:00:11]} 85. Rg1+ {[%clk 0:00:13]}  Kf5 {[%clk 0:00:11]} 86. Re1 {[%clk 0:00:13]}  Ra3+ {[%clk 0:00:12]} 87. Ke2 {[%clk 0:00:13]}  Bd4 {[%clk 0:00:12]} 88. Rb1 {[%clk 0:00:13]}  f3+ {[%clk 0:00:13]} 89. Kf1 {[%clk 0:00:11]}  Ke4 {[%clk 0:00:13]} 90. Re1+ {[%clk 0:00:11]}  Kd3 {[%clk 0:00:13]} 91. Be3 {[%clk 0:00:11]}  Bc3 {[%clk 0:00:13]} 92. Rd1+ {[%clk 0:00:12]}  Ke4 {[%clk 0:00:13]} 93. Kg1 {[%clk 0:00:12]}  Ra8 {[%clk 0:00:13]} 94. Kh2 {[%clk 0:00:12]}  Rg8 {[%clk 0:00:13]} 95. Kh3 {[%clk 0:00:12]}  Be5 {[%clk 0:00:13]} 96. Rd7 {[%clk 0:00:12]}  Rh8+ {[%clk 0:00:12]} 97. Kg4 {[%clk 0:00:12]}  Rg8+ {[%clk 0:00:13]} 98. Kh3 {[%clk 0:00:12]}  Rg2 {[%clk 0:00:13]} 99. Ra7 {[%clk 0:00:12]}  Kd3 {[%clk 0:00:13]} 100. Ra3+ {[%clk 0:00:12]}  Ke4 {[%clk 0:00:13]} 101. Ra4+ {[%clk 0:00:12]}  Kf5 {[%clk 0:00:14]} 102. Ra5 {[%clk 0:00:12]}  Rh2# {[%clk 0:00:14]} 0-1


[Site "https://www.chess.com"]

[Event "Titled Tuesday Blitz July 27 2021"]
[White "Sapunov, Evgeny"]
[Black "Yilmaz, Mustafa"]
[WhiteFideId "4126661"]
[BlackFideId "6302718"]
[WhiteElo "2470"]
[BlackElo "2518"]
[Result "1-0"]
[Round "06"]
[TimeControl "180+1"]
[Date "2021.07.27"]
[WhiteClock "0:01:15"]
[BlackClock "0:00:11"]

1. c4 {[%clk 0:03:00]}  e5 {[%clk 0:02:57]} 2. Nf3 {[%clk 0:03:00]}  Nc6 {[%clk 0:02:55]} 3. Nc3 {[%clk 0:02:59]}  g6 {[%clk 0:02:54]} 4. d4 {[%clk 0:02:57]}  exd4 {[%clk 0:02:50]} 5. Nxd4 {[%clk 0:02:58]}  Bg7 {[%clk 0:02:51]} 6. Nxc6 {[%clk 0:02:58]}  bxc6 {[%clk 0:02:52]} 7. g3 {[%clk 0:02:58]}  Ne7 {[%clk 0:02:51]} 8. Bg2 {[%clk 0:02:59]}  O-O {[%clk 0:02:51]} 9. O-O {[%clk 0:02:59]}  Rb8 {[%clk 0:02:50]} 10. Qa4 {[%clk 0:02:59]}  d6 {[%clk 0:02:49]} 11. c5 {[%clk 0:02:52]}  Be6 {[%clk 0:02:41]} 12. cxd6 {[%clk 0:02:45]}  cxd6 {[%clk 0:02:40]} 13. Qxa7 {[%clk 0:02:45]}  d5 {[%clk 0:02:35]} 14. Bg5 {[%clk 0:02:37]}  f6 {[%clk 0:02:32]} 15. Be3 {[%clk 0:02:33]}  Nf5 {[%clk 0:02:25]} 16. Bc5 {[%clk 0:02:23]}  Rf7 {[%clk 0:02:22]} 17. Qa4 {[%clk 0:02:21]}  Bd7 {[%clk 0:01:32]} 18. b4 {[%clk 0:02:15]}  Bf8 {[%clk 0:01:32]} 19. Bxf8 {[%clk 0:02:09]}  Qxf8 {[%clk 0:01:29]} 20. Rab1 {[%clk 0:02:00]}  d4 {[%clk 0:01:28]} 21. Ne4 {[%clk 0:01:57]}  c5 {[%clk 0:01:11]} 22. Nxf6+ {[%clk 0:01:46]}  Rxf6 {[%clk 0:01:12]} 23. Qxd7 {[%clk 0:01:46]}  cxb4 {[%clk 0:01:12]} 24. Be4 {[%clk 0:01:38]}  Nd6 {[%clk 0:00:56]} 25. Bd3 {[%clk 0:01:33]}  Rd8 {[%clk 0:00:49]} 26. Qc6 {[%clk 0:01:29]}  Kh8 {[%clk 0:00:35]} 27. Qc5 {[%clk 0:01:27]}  Nf5 {[%clk 0:00:20]} 28. Qxb4 {[%clk 0:01:22]}  Qxb4 {[%clk 0:00:13]} 29. Rxb4 {[%clk 0:01:21]}  Ra8 {[%clk 0:00:14]} 30. a4 {[%clk 0:01:21]}  Ra5 {[%clk 0:00:12]} 31. Bxf5 {[%clk 0:01:18]}  Rfxf5 {[%clk 0:00:12]} 32. Rxd4 {[%clk 0:01:18]}  Rfe5 {[%clk 0:00:12]} 33. e3 {[%clk 0:01:18]}  Re7 {[%clk 0:00:11]} 34. Rfd1 {[%clk 0:01:15]} 1-0


[Site "https://www.chess.com"]

[Event "Titled Tuesday Blitz July 27 2021"]
[White "Shtyka, Sergey"]
[Black "Krysa, Leandro"]
[WhiteFideId "4138465"]
[BlackFideId "116807"]
[WhiteElo "2064"]
[BlackElo "2490"]
[Result "0-1"]
[Round "06"]
[TimeControl "180+1"]
[Date "2021.07.27"]
[WhiteClock "0:00:01"]
[BlackClock "0:01:14"]

1. e4 {[%clk 0:03:00]}  c5 {[%clk 0:02:58]} 2. Nf3 {[%clk 0:03:00]}  e6 {[%clk 0:02:59]} 3. d4 {[%clk 0:02:59]}  cxd4 {[%clk 0:03:00]} 4. Nxd4 {[%clk 0:02:59]}  a6 {[%clk 0:03:00]} 5. Nc3 {[%clk 0:03:00]}  b5 {[%clk 0:03:00]} 6. a3 {[%clk 0:02:57]}  Bb7 {[%clk 0:02:59]} 7. Bd3 {[%clk 0:02:57]}  d6 {[%clk 0:02:59]} 8. Be3 {[%clk 0:02:57]}  Nf6 {[%clk 0:02:59]} 9. O-O {[%clk 0:02:56]}  Nbd7 {[%clk 0:02:57]} 10. f4 {[%clk 0:02:52]}  Be7 {[%clk 0:02:56]} 11. Qf3 {[%clk 0:02:52]}  O-O {[%clk 0:02:54]} 12. Rae1 {[%clk 0:02:51]}  Nc5 {[%clk 0:02:52]} 13. Kh1 {[%clk 0:02:45]}  Rc8 {[%clk 0:02:50]} 14. Bf2 {[%clk 0:02:44]}  d5 {[%clk 0:02:37]} 15. exd5 {[%clk 0:02:13]}  Nxd3 {[%clk 0:02:32]} 16. Qxd3 {[%clk 0:02:06]}  Nxd5 {[%clk 0:02:32]} 17. Nxd5 {[%clk 0:02:05]}  Qxd5 {[%clk 0:02:30]} 18. Qg3 {[%clk 0:01:45]}  Bh4 {[%clk 0:02:28]} 19. Qf3 {[%clk 0:01:35]}  Qxd4 {[%clk 0:02:07]} 20. Qxb7 {[%clk 0:00:14]}  Bxf2 {[%clk 0:02:05]} 21. Rd1 {[%clk 0:00:09]}  Qb6 {[%clk 0:02:02]} 22. Qf3 {[%clk 0:00:07]}  Rxc2 {[%clk 0:02:00]} 23. f5 {[%clk 0:00:06]}  exf5 {[%clk 0:01:56]} 24. Qxf5 {[%clk 0:00:03]}  Qg6 {[%clk 0:01:55]} 25. Qd7 {[%clk 0:00:02]}  Bc5 {[%clk 0:01:50]} 26. Qd5 {[%clk 0:00:01]}  h6 {[%clk 0:01:47]} 27. Rfe1 {[%clk 0:00:02]}  Rxb2 {[%clk 0:01:29]} 28. Rd3 {[%clk 0:00:02]}  Bd6 {[%clk 0:01:15]} 29. Qxd6 {[%clk 0:00:01]}  Qxg2# {[%clk 0:01:14]} 0-1


[Site "https://www.chess.com"]

[Event "Titled Tuesday Blitz July 27 2021"]
[White "Sliwicki, Damian"]
[Black "Dowgird, Filip"]
[WhiteFideId "1127128"]
[BlackFideId "1121235"]
[WhiteElo "2149"]
[BlackElo "2209"]
[Result "1-0"]
[Round "06"]
[TimeControl "180+1"]
[Date "2021.07.27"]
[WhiteClock "0:00:13"]
[BlackClock "0:00:16"]

1. e4 {[%clk 0:02:57]}  d6 {[%clk 0:02:58]} 2. d4 {[%clk 0:02:53]}  Nf6 {[%clk 0:02:59]} 3. Nc3 {[%clk 0:02:49]}  c6 {[%clk 0:02:59]} 4. Bg5 {[%clk 0:02:42]}  Qb6 {[%clk 0:02:59]} 5. Qd2 {[%clk 0:02:38]}  Qxb2 {[%clk 0:02:58]} 6. Rb1 {[%clk 0:02:35]}  Qa3 {[%clk 0:02:59]} 7. Bc4 {[%clk 0:02:28]}  Nbd7 {[%clk 0:02:45]} 8. Nf3 {[%clk 0:02:24]}  e6 {[%clk 0:02:42]} 9. O-O {[%clk 0:02:14]}  b5 {[%clk 0:02:12]} 10. Bxb5 {[%clk 0:01:57]}  Nxe4 {[%clk 0:01:57]} 11. Nxe4 {[%clk 0:01:54]}  cxb5 {[%clk 0:01:56]} 12. Rxb5 {[%clk 0:01:45]}  Qxa2 {[%clk 0:01:25]} 13. Ne5 {[%clk 0:00:42]}  f6 {[%clk 0:00:52]} 14. Ra5 {[%clk 0:00:29]}  Qb2 {[%clk 0:00:52]} 15. Nc4 {[%clk 0:00:17]}  Qb8 {[%clk 0:00:51]} 16. Bf4 {[%clk 0:00:16]}  e5 {[%clk 0:00:52]} 17. dxe5 {[%clk 0:00:16]}  dxe5 {[%clk 0:00:51]} 18. Ned6+ {[%clk 0:00:15]}  Bxd6 {[%clk 0:00:44]} 19. Nxd6+ {[%clk 0:00:16]}  Ke7 {[%clk 0:00:31]} 20. Nf5+ {[%clk 0:00:16]}  Kf7 {[%clk 0:00:31]} 21. Rb5 {[%clk 0:00:15]}  Qc7 {[%clk 0:00:20]} 22. Qd5+ {[%clk 0:00:14]}  Kg6 {[%clk 0:00:18]} 23. Ne7+ {[%clk 0:00:13]}  Kh5 {[%clk 0:00:16]} 24. Qf3+ {[%clk 0:00:13]} 1-0


[Site "https://www.chess.com"]

[Event "Titled Tuesday Blitz July 27 2021"]
[White "Srihari L R"]
[Black "Pelopidass"]
[WhiteFideId "46617116"]
[WhiteElo "2121"]
[BlackElo "2579"]
[Result "1-0"]
[Round "06"]
[TimeControl "180+1"]
[Date "2021.07.27"]
[WhiteClock "0:00:20"]
[BlackClock "0:00:07"]

1. Nf3 {[%clk 0:03:00]}  Nf6 {[%clk 0:02:59]} 2. g3 {[%clk 0:03:00]}  g6 {[%clk 0:02:54]} 3. Bg2 {[%clk 0:03:01]}  Bg7 {[%clk 0:02:55]} 4. O-O {[%clk 0:03:01]}  O-O {[%clk 0:02:55]} 5. d3 {[%clk 0:03:02]}  d5 {[%clk 0:02:54]} 6. Nbd2 {[%clk 0:03:01]}  Nc6 {[%clk 0:02:48]} 7. c3 {[%clk 0:02:59]}  Bg4 {[%clk 0:02:46]} 8. h3 {[%clk 0:02:55]}  Bxf3 {[%clk 0:02:45]} 9. Bxf3 {[%clk 0:02:53]}  Qd7 {[%clk 0:02:44]} 10. Bg2 {[%clk 0:02:52]}  e5 {[%clk 0:02:43]} 11. e4 {[%clk 0:02:51]}  dxe4 {[%clk 0:02:39]} 12. Nxe4 {[%clk 0:02:50]}  Nxe4 {[%clk 0:02:38]} 13. dxe4 {[%clk 0:02:43]}  Qxd1 {[%clk 0:02:34]} 14. Rxd1 {[%clk 0:02:44]}  Rfd8 {[%clk 0:02:33]} 15. Be3 {[%clk 0:02:45]}  b6 {[%clk 0:02:20]} 16. Bf1 {[%clk 0:02:44]}  Rxd1 {[%clk 0:02:18]} 17. Rxd1 {[%clk 0:02:45]}  Rd8 {[%clk 0:02:18]} 18. Rxd8+ {[%clk 0:02:42]}  Nxd8 {[%clk 0:02:19]} 19. a4 {[%clk 0:02:42]}  Bf8 {[%clk 0:02:16]} 20. Bc4 {[%clk 0:02:40]}  Kg7 {[%clk 0:02:14]} 21. Kf1 {[%clk 0:02:39]}  Bc5 {[%clk 0:01:29]} 22. Bxc5 {[%clk 0:02:24]}  bxc5 {[%clk 0:01:30]} 23. Ba6 {[%clk 0:02:24]}  f5 {[%clk 0:01:24]} 24. exf5 {[%clk 0:02:22]}  gxf5 {[%clk 0:01:23]} 25. Ke2 {[%clk 0:02:22]}  Nf7 {[%clk 0:01:23]} 26. Kd3 {[%clk 0:02:12]}  Nd6 {[%clk 0:01:22]} 27. b4 {[%clk 0:02:12]}  cxb4 {[%clk 0:01:17]} 28. cxb4 {[%clk 0:02:13]}  Kf6 {[%clk 0:01:15]} 29. Ke3 {[%clk 0:02:11]}  Ke6 {[%clk 0:01:10]} 30. g4 {[%clk 0:01:54]}  Kd5 {[%clk 0:00:52]} 31. f3 {[%clk 0:01:32]}  h6 {[%clk 0:00:37]} 32. h4 {[%clk 0:01:28]}  Ke6 {[%clk 0:00:29]} 33. Bd3 {[%clk 0:01:22]}  Kf6 {[%clk 0:00:26]} 34. gxf5 {[%clk 0:01:14]}  Nxf5+ {[%clk 0:00:25]} 35. Bxf5 {[%clk 0:01:14]}  Kxf5 {[%clk 0:00:26]} 36. b5 {[%clk 0:01:14]}  h5 {[%clk 0:00:24]} 37. a5 {[%clk 0:01:14]}  Kf6 {[%clk 0:00:24]} 38. Ke4 {[%clk 0:01:14]}  Ke6 {[%clk 0:00:23]} 39. f4 {[%clk 0:01:14]}  exf4 {[%clk 0:00:23]} 40. Kxf4 {[%clk 0:01:14]}  Kd6 {[%clk 0:00:18]} 41. Kg5 {[%clk 0:01:00]}  Kc5 {[%clk 0:00:18]} 42. Kxh5 {[%clk 0:01:00]}  Kxb5 {[%clk 0:00:19]} 43. Kg4 {[%clk 0:01:00]}  c5 {[%clk 0:00:17]} 44. Kf3 {[%clk 0:00:53]}  Kb4 {[%clk 0:00:17]} 45. h5 {[%clk 0:00:43]}  c4 {[%clk 0:00:12]} 46. Ke2 {[%clk 0:00:26]}  Kb3 {[%clk 0:00:09]} 47. h6 {[%clk 0:00:21]}  c3 {[%clk 0:00:09]} 48. h7 {[%clk 0:00:21]}  c2 {[%clk 0:00:07]} 49. Kd2 {[%clk 0:00:20]} 1-0


[Site "https://www.chess.com"]

[Event "Titled Tuesday Blitz July 27 2021"]
[White "Stoyanov, Tsvetan"]
[Black "Jian, Alex"]
[WhiteFideId "2917173"]
[BlackFideId "30901022"]
[WhiteElo "2198"]
[BlackElo "2111"]
[Result "1-0"]
[Round "06"]
[TimeControl "180+1"]
[Date "2021.07.27"]
[WhiteClock "0:00:09"]
[BlackClock "0:00:01"]

1. c4 {[%clk 0:03:00]}  e6 {[%clk 0:02:57]} 2. Nc3 {[%clk 0:03:00]}  d5 {[%clk 0:02:57]} 3. d4 {[%clk 0:03:00]}  Nf6 {[%clk 0:02:57]} 4. cxd5 {[%clk 0:03:00]}  Nxd5 {[%clk 0:02:58]} 5. e4 {[%clk 0:03:00]}  Nxc3 {[%clk 0:02:58]} 6. bxc3 {[%clk 0:03:01]}  c5 {[%clk 0:02:58]} 7. Nf3 {[%clk 0:03:02]}  cxd4 {[%clk 0:02:59]} 8. cxd4 {[%clk 0:03:03]}  Bb4+ {[%clk 0:02:59]} 9. Bd2 {[%clk 0:03:03]}  Bxd2+ {[%clk 0:03:00]} 10. Qxd2 {[%clk 0:03:04]}  O-O {[%clk 0:03:01]} 11. Bc4 {[%clk 0:03:01]}  Nd7 {[%clk 0:03:01]} 12. O-O {[%clk 0:03:01]}  b6 {[%clk 0:03:01]} 13. Rfe1 {[%clk 0:03:00]}  Bb7 {[%clk 0:03:01]} 14. Rad1 {[%clk 0:02:59]}  Nf6 {[%clk 0:03:00]} 15. Qf4 {[%clk 0:02:57]}  Rc8 {[%clk 0:03:01]} 16. Bb3 {[%clk 0:02:55]}  Qc7 {[%clk 0:03:01]} 17. Qh4 {[%clk 0:02:55]}  h6 {[%clk 0:03:01]} 18. d5 {[%clk 0:02:44]}  exd5 {[%clk 0:03:00]} 19. exd5 {[%clk 0:02:45]}  Qd6 {[%clk 0:02:40]} 20. Nd4 {[%clk 0:02:41]}  Qb4 {[%clk 0:02:01]} 21. Qg3 {[%clk 0:02:29]}  Rc3 {[%clk 0:01:52]} 22. Qe5 {[%clk 0:02:22]}  Re8 {[%clk 0:01:46]} 23. Qxe8+ {[%clk 0:02:06]}  Nxe8 {[%clk 0:01:46]} 24. Rxe8+ {[%clk 0:02:07]}  Kh7 {[%clk 0:01:46]} 25. h3 {[%clk 0:01:54]}  a5 {[%clk 0:01:15]} 26. d6 {[%clk 0:01:53]}  Qxd6 {[%clk 0:01:06]} 27. Bxf7 {[%clk 0:01:52]}  Rc8 {[%clk 0:00:50]} 28. Re6 {[%clk 0:01:41]}  Qd7 {[%clk 0:00:43]} 29. Bg6+ {[%clk 0:01:39]}  Kh8 {[%clk 0:00:44]} 30. Bf5 {[%clk 0:01:29]}  Qd5 {[%clk 0:00:30]} 31. Be4 {[%clk 0:00:58]}  Qxe4 {[%clk 0:00:30]} 32. Rxe4 {[%clk 0:00:58]}  Bxe4 {[%clk 0:00:30]} 33. Re1 {[%clk 0:00:58]}  Bd5 {[%clk 0:00:29]} 34. Rb1 {[%clk 0:00:52]}  Rb8 {[%clk 0:00:24]} 35. a4 {[%clk 0:00:51]}  Be4 {[%clk 0:00:20]} 36. Rb2 {[%clk 0:00:47]}  Bg6 {[%clk 0:00:19]} 37. Nc6 {[%clk 0:00:46]}  Rb7 {[%clk 0:00:11]} 38. Nxa5 {[%clk 0:00:31]}  Ra7 {[%clk 0:00:11]} 39. Nc4 {[%clk 0:00:31]}  Rxa4 {[%clk 0:00:11]} 40. Nxb6 {[%clk 0:00:32]}  Ra1+ {[%clk 0:00:11]} 41. Kh2 {[%clk 0:00:31]}  Kh7 {[%clk 0:00:12]} 42. Nc4 {[%clk 0:00:29]}  Rb1 {[%clk 0:00:11]} 43. Rd2 {[%clk 0:00:28]}  Rc1 {[%clk 0:00:11]} 44. Ne5 {[%clk 0:00:28]}  Rc2 {[%clk 0:00:09]} 45. Rd6 {[%clk 0:00:24]}  Be4 {[%clk 0:00:06]} 46. Kg3 {[%clk 0:00:21]}  Bf5 {[%clk 0:00:06]} 47. Nf3 {[%clk 0:00:17]}  Rc3 {[%clk 0:00:06]} 48. Kf4 {[%clk 0:00:17]}  Bg6 {[%clk 0:00:06]} 49. Ne5 {[%clk 0:00:17]}  Be8 {[%clk 0:00:06]} 50. h4 {[%clk 0:00:15]}  Ra3 {[%clk 0:00:05]} 51. g4 {[%clk 0:00:13]}  Ra4+ {[%clk 0:00:05]} 52. Kg3 {[%clk 0:00:14]}  Ra3+ {[%clk 0:00:05]} 53. f3 {[%clk 0:00:14]}  Rc3 {[%clk 0:00:04]} 54. h5 {[%clk 0:00:14]}  Re3 {[%clk 0:00:04]} 55. Kf4 {[%clk 0:00:14]}  Ra3 {[%clk 0:00:05]} 56. Rd8 {[%clk 0:00:14]}  Ra4+ {[%clk 0:00:04]} 57. Kg3 {[%clk 0:00:09]}  Bb5 {[%clk 0:00:04]} 58. Ng6 {[%clk 0:00:09]}  Be8 {[%clk 0:00:01]} 59. Rxe8 {[%clk 0:00:09]} 1-0


[Site "https://www.chess.com"]

[Event "Titled Tuesday Blitz July 27 2021"]
[White "Tanenbaum, Zachary"]
[Black "Mezentsev, Ivan"]
[WhiteFideId "2060850"]
[BlackFideId "13706195"]
[WhiteElo "2165"]
[BlackElo "2295"]
[Result "0-1"]
[Round "06"]
[TimeControl "180+1"]
[Date "2021.07.27"]
[WhiteClock "0:00:02"]
[BlackClock "0:00:20"]

1. e4 {[%clk 0:03:00]}  c5 {[%clk 0:02:59]} 2. Nf3 {[%clk 0:03:00]}  e6 {[%clk 0:02:59]} 3. d4 {[%clk 0:03:00]}  cxd4 {[%clk 0:03:00]} 4. Nxd4 {[%clk 0:03:01]}  a6 {[%clk 0:03:00]} 5. Bd3 {[%clk 0:03:00]}  Nf6 {[%clk 0:02:59]} 6. O-O {[%clk 0:03:00]}  Qc7 {[%clk 0:02:59]} 7. Nc3 {[%clk 0:03:00]}  Bc5 {[%clk 0:02:56]} 8. Nb3 {[%clk 0:02:59]}  Ba7 {[%clk 0:02:56]} 9. Qe2 {[%clk 0:02:57]}  h5 {[%clk 0:02:54]} 10. h3 {[%clk 0:02:56]}  Nc6 {[%clk 0:02:48]} 11. Be3 {[%clk 0:02:56]}  Bxe3 {[%clk 0:02:20]} 12. Qxe3 {[%clk 0:02:57]}  d6 {[%clk 0:02:20]} 13. Qg3 {[%clk 0:02:46]}  Kf8 {[%clk 0:01:49]} 14. f4 {[%clk 0:02:44]}  b5 {[%clk 0:01:47]} 15. Rae1 {[%clk 0:02:38]}  h4 {[%clk 0:01:42]} 16. Qf3 {[%clk 0:02:35]}  Bb7 {[%clk 0:01:41]} 17. f5 {[%clk 0:02:20]}  e5 {[%clk 0:01:31]} 18. Nd5 {[%clk 0:02:08]}  Nxd5 {[%clk 0:01:30]} 19. exd5 {[%clk 0:02:09]}  Nb4 {[%clk 0:01:20]} 20. f6 {[%clk 0:02:08]}  g6 {[%clk 0:01:17]} 21. Be4 {[%clk 0:02:05]}  a5 {[%clk 0:01:16]} 22. a3 {[%clk 0:01:53]}  Na6 {[%clk 0:01:14]} 23. Qd3 {[%clk 0:01:34]}  a4 {[%clk 0:01:10]} 24. Nd2 {[%clk 0:01:26]}  Nc5 {[%clk 0:01:09]} 25. Qe3 {[%clk 0:01:05]}  Rc8 {[%clk 0:01:01]} 26. Kh1 {[%clk 0:00:45]}  Nd7 {[%clk 0:00:38]} 27. Nf3 {[%clk 0:00:26]}  Qc5 {[%clk 0:00:36]} 28. Qg5 {[%clk 0:00:21]}  Bxd5 {[%clk 0:00:31]} 29. Nxh4 {[%clk 0:00:19]}  Bxe4 {[%clk 0:00:31]} 30. Rxe4 {[%clk 0:00:20]}  Qxc2 {[%clk 0:00:31]} 31. Nxg6+ {[%clk 0:00:12]}  fxg6 {[%clk 0:00:31]} 32. Qxg6 {[%clk 0:00:13]}  Rg8 {[%clk 0:00:31]} 33. Qh6+ {[%clk 0:00:12]}  Kf7 {[%clk 0:00:32]} 34. Qh7+ {[%clk 0:00:12]}  Ke6 {[%clk 0:00:31]} 35. Rg1 {[%clk 0:00:10]}  Nxf6 {[%clk 0:00:29]} 36. Rxe5+ {[%clk 0:00:07]}  dxe5 {[%clk 0:00:29]} 37. Qh4 {[%clk 0:00:06]}  Rh8 {[%clk 0:00:27]} 38. Qg3 {[%clk 0:00:06]}  Rcg8 {[%clk 0:00:25]} 39. Qf3 {[%clk 0:00:05]}  Qe4 {[%clk 0:00:24]} 40. Qc3 {[%clk 0:00:04]}  Ng4 {[%clk 0:00:21]} 41. Re1 {[%clk 0:00:02]}  Nf2+ {[%clk 0:00:20]} 42. Kg1 {[%clk 0:00:02]}  Qxg2# {[%clk 0:00:20]} 0-1


[Site "https://www.chess.com"]

[Event "Titled Tuesday Blitz July 27 2021"]
[White "Tologon tegin, Semetei"]
[Black "Araujo Sanchez, Josue"]
[WhiteFideId "13800574"]
[BlackFideId "6416896"]
[WhiteElo "2224"]
[BlackElo "2181"]
[Result "0-1"]
[Round "06"]
[TimeControl "180+1"]
[Date "2021.07.27"]
[WhiteClock "0:01:13"]
[BlackClock "0:01:57"]

1. e4 {[%clk 0:03:00]}  c5 {[%clk 0:02:48]} 2. Nc3 {[%clk 0:02:59]}  d6 {[%clk 0:02:48]} 3. g3 {[%clk 0:02:59]}  Nc6 {[%clk 0:02:49]} 4. Bg2 {[%clk 0:02:59]}  g6 {[%clk 0:02:49]} 5. d3 {[%clk 0:03:00]}  Bg7 {[%clk 0:02:50]} 6. f4 {[%clk 0:03:00]}  e6 {[%clk 0:02:51]} 7. Nf3 {[%clk 0:03:01]}  Nge7 {[%clk 0:02:52]} 8. O-O {[%clk 0:03:01]}  Rb8 {[%clk 0:02:52]} 9. a4 {[%clk 0:03:01]}  O-O {[%clk 0:02:51]} 10. Ne2 {[%clk 0:03:01]}  d5 {[%clk 0:02:49]} 11. c3 {[%clk 0:02:50]}  b6 {[%clk 0:02:49]} 12. Qc2 {[%clk 0:02:44]}  Ba6 {[%clk 0:02:48]} 13. Rd1 {[%clk 0:02:43]}  Rc8 {[%clk 0:02:43]} 14. Be3 {[%clk 0:02:42]}  Qd7 {[%clk 0:02:42]} 15. Bf2 {[%clk 0:02:41]}  Rfd8 {[%clk 0:02:41]} 16. g4 {[%clk 0:02:38]}  dxe4 {[%clk 0:02:40]} 17. dxe4 {[%clk 0:02:37]}  Bd3 {[%clk 0:02:39]} 18. Qb3 {[%clk 0:02:23]}  Qc7 {[%clk 0:02:32]} 19. Rxd3 {[%clk 0:02:11]}  Rxd3 {[%clk 0:02:33]} 20. e5 {[%clk 0:02:07]}  Rcd8 {[%clk 0:02:27]} 21. Qc2 {[%clk 0:01:41]}  R3d7 {[%clk 0:02:21]} 22. Bh4 {[%clk 0:01:26]}  Na5 {[%clk 0:02:06]} 23. b3 {[%clk 0:01:25]}  c4 {[%clk 0:02:04]} 24. b4 {[%clk 0:01:25]}  Nb3 {[%clk 0:02:04]} 25. Ned4 {[%clk 0:01:13]}  Nxa1 {[%clk 0:01:57]} 0-1


[Site "https://www.chess.com"]